Workbook

Sheet Печатная форма
A1: Приложение
A2: к пояснительной записке
A4: Функциональная структура расходов
A5: бюджета МО «Усть-Коксинский район» на 2014 год
A7: Код по ФКР | B7: Наименование расхода | C7: Уточненный план на год, руб. | D7: Исполнено, руб. | E7: Процент исполнения, %
A8: 1 | B8: 2 | C8: 3 | D8: 4 | E8: 5
A9: 0100 | B9: ОБЩЕГОСУДАРСТВЕННЫЕ ВОПРОСЫ | C9: =C10+C11+C12+C13+C14+C15 -> 33,585,051.78 | D9: =D10+D11+D12+D13+D14+D15 -> 33,118,362.00 | E9: =D9/C9*100 -> 98.61
A10: 0102 | B10: Функционирование высшего должностного лица субъекта Российской Федерации и муниципального образования | C10: 1,241,371.00 | D10: 1,236,096.01 | E10: =D10/C10*100 -> 99.58
A11: 0103 | B11: Функционирование законодательных (представительных) органов государственной власти и представительных органов муниципальных образований | C11: 1,788,166.00 | D11: 1,778,889.13 | E11: =D11/C11*100 -> 99.48
A12: 0104 | B12: Функционирование Правительства Российской Федерации, высших исполнительных органов государственной власти субъектов Российской Федерации, местных администраций | C12: 18,211,278.06 | D12: 18,114,521.02 | E12: 99.47
A13: 0106 | B13: Обеспечение деятельности финансовых, налоговых и таможенных органов и органов финансового (финансово-бюджетного) надзора | C13: 6,452,040.00 | D13: 6,448,815.89 | E13: 99.95
A14: 0111 | B14: Резервные фонды | C14: 319,844.59 | D14: 0.00 | E14: 0.00
A15: 0113 | B15: Другие общегосударственные вопросы | C15: 5,572,352.13 | D15: 5,540,039.95 | E15: 99.42
A16: 0200 | B16: НАЦИОНАЛЬНАЯ ОБОРОНА | C16: =C17+C18 -> 533,250.00 | D16: =D17+D18 -> 515,400.00 | E16: =D16/C16*100 -> 96.65
A17: 0203 | B17: Мобилизационная и вневойсковая подготовка | C17: 515,400.00 | D17: 515,400.00 | E17: =D17/C17*100 -> 100.00
A18: 0204 | B18: Мобилизационная подготовка экономики | C18: 17,850.00 | D18: 0.00 | E18: 0.00
A19: 0300 | B19: НАЦИОНАЛЬНАЯ БЕЗОПАСНОСТЬ И ПРАВООХРАНИТЕЛЬНАЯ ДЕЯТЕЛЬНОСТЬ | C19: =C20+C21 -> 2,104,375.40 | D19: =D20+D21 -> 1,721,431.73 | E19: =D19/C19*100 -> 81.80
A20: 0309 | B20: Защита населения и территории от чрезвычайных ситуаций природного и техногенного характера, гражданская оборона | C20: 853,000.00 | D20: 480,499.75 | E20: =D20/C20*100 -> 56.33
A21: 0314 | B21: Другие вопросы в области национальной безопасности и правоохранительной деятельности | C21: 1,251,375.40 | D21: 1,240,931.98 | E21: 99.17
A22: 0400 | B22: НАЦИОНАЛЬНАЯ ЭКОНОМИКА | C22: =C23+C25+C26+C24 -> 25,914,135.00 | D22: =D23+D25+D26+D24 -> 24,408,927.70 | E22: =D22/C22*100 -> 94.19
A23: 0405 | B23: Сельское хозяйство и рыболовство | C23: 2,499,877.00 | D23: 2,496,745.20 | E23: =D23/C23*100 -> 99.87
A24: 0406 | B24: Водное хозяйство | C24: 1,500,000.00 | D24: 0.00 | E24: 0.00
A25: 0409 | B25: Дорожное хозяйство (дорожные фонды) | C25: 19,092,180.00 | D25: 19,092,180.00 | E25: 100.00
A26: 0412 | B26: Другие вопросы в области национальной экономики | C26: 2,822,078.00 | D26: 2,820,002.50 | E26: 99.93
A27: 0500 | B27: ЖИЛИЩНО-КОММУНАЛЬНОЕ ХОЗЯЙСТВО | C27: =C28+C29+C30 -> 25,584,649.69 | D27: =D28+D29+D30 -> 25,584,149.69 | E27: =D27/C27*100 -> 100.00
A28: 0501 | B28: Жилищное хозяйство | C28: 8,909,289.00 | D28: 8,909,289.00 | E28: =D28/C28*100 -> 100.00
A29: 0502 | B29: Коммунальное хозяйство | C29: 16,585,360.69 | D29: 16,584,860.69 | E29: 100.00
A30: 0503 | B30: Благоустройство | C30: 90,000.00 | D30: 90,000.00 | E30: 100.00
A31: 0700 | B31: ОБРАЗОВАНИЕ | C31: =C32+C33+C34+C35+C36 -> 383,864,417.15 | D31: =D32+D33+D34+D35+D36 -> 383,817,086.68 | E31: =D31/C31*100 -> 99.99
A32: 0701 | B32: Дошкольное образование | C32: 67,354,062.08 | D32: 67,354,055.05 | E32: =D32/C32*100 -> 100.00
A33: 0702 | B33: Общее образование | C33: =283918168.92+11000000 -> 294,918,168.92 | D33: 294,875,882.82 | E33: 99.99
A34: 0705 | B34: Профессиональная подготовка, переподготовка и повышение квалификации | C34: 708,680.15 | D34: 706,585.15 | E34: 99.70
A35: 0707 | B35: Молодежная политика и оздоровление детей | C35: 3,185,400.00 | D35: 3,185,080.00 | E35: 99.99
A36: 0709 | B36: Другие вопросы в области образования | C36: 17,698,106.00 | D36: 17,695,483.66 | E36: 99.99
A37: 0800 | B37: КУЛЬТУРА, КИНЕМАТОГРАФИЯ | C37: =C38+C39 -> 34,152,992.64 | D37: =D38+D39 -> 34,116,457.48 | E37: =D37/C37*100 -> 99.89
A38: 0801 | B38: Культура | C38: 29,430,309.64 | D38: 29,430,309.64 | E38: =D38/C38*100 -> 100.00
A39: 0804 | B39: Другие вопросы в области культуры, кинематографии. | C39: 4,722,683.00 | D39: 4,686,147.84 | E39: 99.23
A40: 1000 | B40: СОЦИАЛЬНАЯ ПОЛИТИКА | C40: =C41+C42+C43 -> 7,791,579.00 | D40: =D41+D42+D43 -> 7,690,038.01 | E40: =D40/C40*100 -> 98.70
A41: 1001 | B41: Пенсионное обеспечение | C41: 366,500.00 | D41: 366,319.01 | E41: =D41/C41*100 -> 99.95
A42: 1003 | B42: Социальное обеспечение населения | C42: 5,175,079.00 | D42: 5,073,719.00 | E42: 98.04
A43: 1004 | B43: Охрана семьи и детства | C43: 2,250,000.00 | D43: 2,250,000.00 | E43: 100.00
A44: 1100 | B44: ФИЗИЧЕСКАЯ КУЛЬТУРА И СПОРТ | C44: =C45+C46+C47 -> 868,168.00 | D44: =D45+D46+D47 -> 866,539.45 | E44: =D44/C44*100 -> 99.81
A45: 1101 | B45: Физическая культура | C45: 139,000.00 | D45: 137,995.00 | E45: =D45/C45*100 -> 99.28
A46: 1102 | B46: Массовый спорт | C46: 247,679.60 | D46: 247,669.60 | E46: 100.00
A47: 1103 | B47: Спорт высших достижений | C47: 481,488.40 | D47: 480,874.85 | E47: 99.87
A48: 1200 | B48: СРЕДСТВА МАССОВОЙ ИНФОРМАЦИИ | C48: =C49+C50 -> 2,322,000.00 | D48: =D49+D50 -> 2,322,000.00 | E48: =D48/C48*100 -> 100.00
A49: 1201 | B49: Телевидение и радиовещание | C49: =200000 -> 200,000.00 | D49: 200,000.00 | E49: =D49/C49*100 -> 100.00
A50: 1202 | B50: Периодическая печать и издательства | C50: =2122000 -> 2,122,000.00 | D50: 2,122,000.00 | E50: 100.00
A51: 1300 | B51: ОБСЛУЖИВАНИЕ ГОСУДАРСТВЕННОГО И МУНИЦИПАЛЬНОГО ДОЛГА | C51: =C52 -> 92,000.00 | D51: =D52 -> 91,986.30 | E51: =D51/C51*100 -> 99.99
A52: 1301 | B52: Обслуживание государственного внутреннего и муниципального долга | C52: 92,000.00 | D52: 91,986.30 | E52: =D52/C52*100 -> 99.99
A53: 1400 | B53: МЕЖБЮДЖЕТНЫЕ ТРАНСФЕРТЫ ОБЩЕГО ХАРАКТЕРА БЮДЖЕТАМ СУБЪЕКТОВ РОССИЙСКОЙ ФЕДЕРАЦИИ И МУНИЦИПАЛЬНЫХ ОБРАЗОВАНИЙ | C53: =C54+C55 -> 38,687,278.00 | D53: =D54+D55 -> 38,608,582.00 | E53: =D53/C53*100 -> 99.80
A54: 1401 | B54: Дотации на выравнивание бюджетной обеспеченности субъектов Российской Федерации и муниципальных образований | C54: =29022600 -> 29,022,600.00 | D54: 29,022,600.00 | E54: =D54/C54*100 -> 100.00
A55: 1403 | B55: Прочие межбюджетные трансферты общего характера. | C55: 9,664,678.00 | D55: 9,585,982.00 | E55: 99.19
A56: ИТОГО | C56: =C9+C16+C19+C22+C27+C31+C37+C40+C44+C48+C51+C53 -> 555,499,896.66 | D56: =D9+D16+D19+D22+D27+D31+D37+D40+D44+D48+D51+D53 -> 552,860,961.04 | E56: =D56/C56*100 -> 99.52

Sheet Печатная форма (2)
A1: Приложение
A2: к пояснительной записке
A4: Функциональная структура расходов
A5: бюджета МО «Усть-Коксинский район» на 2014 год.
A7: Код по ФКР | B7: Наименование расхода | C7: Уточненный план на год, руб. | D7: Исполнено, руб. | E7: Процент исполнения, %
A8: 1 | B8: 2 | C8: 3 | D8: 4 | E8: 5
A9: 0100 | B9: ОБЩЕГОСУДАРСТВЕННЫЕ ВОПРОСЫ | C9: =C10+C11+C12+C13+C14+C15 -> 33,585,051.78 | D9: =D10+D11+D12+D13+D14+D15 -> 33,118,362.00 | E9: =D9/C9*100 -> 98.61
A10: 0102 | B10: Функционирование высшего должностного лица субъекта Российской Федерации и муниципального образования | C10: 1,241,371.00 | D10: 1,236,096.01 | E10: =D10/C10*100 -> 99.58
A11: 0103 | B11: Функционирование законодательных (представительных) органов государственной власти и представительных органов муниципальных образований | C11: 1,788,166.00 | D11: 1,778,889.13 | E11: =D11/C11*100 -> 99.48
A12: 0104 | B12: Функционирование Правительства Российской Федерации, высших исполнительных органов государственной власти субъектов Российской Федерации, местных администраций | C12: 18,211,278.06 | D12: 18,114,521.02 | E12: 99.47
A13: 0106 | B13: Обеспечение деятельности финансовых, налоговых и таможенных органов и органов финансового (финансово-бюджетного) надзора | C13: 6,452,040.00 | D13: 6,448,815.89 | E13: 99.95
A14: 0111 | B14: Резервные фонды | C14: 319,844.59 | D14: 0.00 | E14: 0.00
A15: 0113 | B15: Другие общегосударственные вопросы | C15: 5,572,352.13 | D15: 5,540,039.95 | E15: 99.42
A16: 0200 | B16: НАЦИОНАЛЬНАЯ ОБОРОНА | C16: =C17+C18 -> 533,250.00 | D16: =D17+D18 -> 515,400.00 | E16: =D16/C16*100 -> 96.65
A17: 0203 | B17: Мобилизационная и вневойсковая подготовка | C17: 515,400.00 | D17: 515,400.00 | E17: =D17/C17*100 -> 100.00
A18: 0204 | B18: Мобилизационная подготовка экономики | C18: 17,850.00 | D18: 0.00 | E18: 0.00
A19: 0300 | B19: НАЦИОНАЛЬНАЯ БЕЗОПАСНОСТЬ И ПРАВООХРАНИТЕЛЬНАЯ ДЕЯТЕЛЬНОСТЬ | C19: =C20+C21 -> 2,104,375.40 | D19: =D20+D21 -> 1,721,431.73 | E19: =D19/C19*100 -> 81.80
A20: 0309 | B20: Защита населения и территории от чрезвычайных ситуаций природного и техногенного характера, гражданская оборона | C20: 853,000.00 | D20: 480,499.75 | E20: =D20/C20*100 -> 56.33
A21: 0314 | B21: Другие вопросы в области национальной безопасности и правоохранительной деятельности | C21: 1,251,375.40 | D21: 1,240,931.98 | E21: 99.17
A22: 0400 | B22: НАЦИОНАЛЬНАЯ ЭКОНОМИКА | C22: =C23+C25+C26+C24 -> 25,914,135.00 | D22: =D23+D25+D26+D24 -> 24,408,927.70 | E22: =D22/C22*100 -> 94.19
A23: 0405 | B23: Сельское хозяйство и рыболовство | C23: 2,499,877.00 | D23: 2,496,745.20 | E23: =D23/C23*100 -> 99.87
A24: 0406 | B24: Водное хозяйство | C24: 1,500,000.00 | D24: 0.00 | E24: 0.00
A25: 0409 | B25: Дорожное хозяйство (дорожные фонды) | C25: 19,092,180.00 | D25: 19,092,180.00 | E25: 100.00
A26: 0412 | B26: Другие вопросы в области национальной экономики | C26: 2,822,078.00 | D26: 2,820,002.50 | E26: 99.93
A27: 0500 | B27: ЖИЛИЩНО-КОММУНАЛЬНОЕ ХОЗЯЙСТВО | C27: =C28+C29+C30 -> 25,584,649.69 | D27: =D28+D29+D30 -> 25,584,149.69 | E27: =D27/C27*100 -> 100.00
A28: 0501 | B28: Жилищное хозяйство | C28: 8,909,289.00 | D28: 8,909,289.00 | E28: =D28/C28*100 -> 100.00
A29: 0502 | B29: Коммунальное хозяйство | C29: 16,585,360.69 | D29: 16,584,860.69 | E29: 100.00
A30: 0503 | B30: Благоустройство | C30: 90,000.00 | D30: 90,000.00 | E30: 100.00
A31: 0700 | B31: ОБРАЗОВАНИЕ | C31: =C32+C33+C34+C35+C36 -> 383,864,417.15 | D31: =D32+D33+D34+D35+D36 -> 383,817,086.68 | E31: =D31/C31*100 -> 99.99
A32: 0701 | B32: Дошкольное образование | C32: 67,354,062.08 | D32: 67,354,055.05 | E32: =D32/C32*100 -> 100.00
A33: 0702 | B33: Общее образование | C33: =283918168.92+11000000 -> 294,918,168.92 | D33: 294,875,882.82 | E33: 99.99
A34: 0705 | B34: Профессиональная подготовка, переподготовка и повышение квалификации | C34: 708,680.15 | D34: 706,585.15 | E34: 99.70
A35: 0707 | B35: Молодежная политика и оздоровление детей | C35: 3,185,400.00 | D35: 3,185,080.00 | E35: 99.99
A36: 0709 | B36: Другие вопросы в области образования | C36: 17,698,106.00 | D36: 17,695,483.66 | E36: 99.99
A37: 0800 | B37: КУЛЬТУРА, КИНЕМАТОГРАФИЯ | C37: =C38+C39 -> 34,152,992.64 | D37: =D38+D39 -> 34,116,457.48 | E37: =D37/C37*100 -> 99.89
A38: 0801 | B38: Культура | C38: 29,430,309.64 | D38: 29,430,309.64 | E38: =D38/C38*100 -> 100.00
A39: 0804 | B39: Другие вопросы в области культуры, кинематографии. | C39: 4,722,683.00 | D39: 4,686,147.84 | E39: 99.23
A40: 1000 | B40: СОЦИАЛЬНАЯ ПОЛИТИКА | C40: =C41+C42+C43 -> 7,791,579.00 | D40: =D41+D42+D43 -> 7,690,038.01 | E40: =D40/C40*100 -> 98.70
A41: 1001 | B41: Пенсионное обеспечение | C41: 366,500.00 | D41: 366,319.01 | E41: =D41/C41*100 -> 99.95
A42: 1003 | B42: Социальное обеспечение населения | C42: 5,175,079.00 | D42: 5,073,719.00 | E42: 98.04
A43: 1004 | B43: Охрана семьи и детства | C43: 2,250,000.00 | D43: 2,250,000.00 | E43: 100.00
A44: 1100 | B44: ФИЗИЧЕСКАЯ КУЛЬТУРА И СПОРТ | C44: =C45+C46+C47 -> 868,168.00 | D44: =D45+D46+D47 -> 866,539.45 | E44: =D44/C44*100 -> 99.81
A45: 1101 | B45: Физическая культура | C45: 139,000.00 | D45: 137,995.00 | E45: =D45/C45*100 -> 99.28
A46: 1102 | B46: Массовый спорт | C46: 247,679.60 | D46: 247,669.60 | E46: 100.00
A47: 1103 | B47: Спорт высших достижений | C47: 481,488.40 | D47: 480,874.85 | E47: 99.87
A48: 1200 | B48: СРЕДСТВА МАССОВОЙ ИНФОРМАЦИИ | C48: =C49+C50 -> 2,322,000.00 | D48: =D49+D50 -> 2,322,000.00 | E48: =D48/C48*100 -> 100.00
A49: 1201 | B49: Телевидение и радиовещание | C49: =200000 -> 200,000.00 | D49: 200,000.00 | E49: =D49/C49*100 -> 100.00
A50: 1202 | B50: Периодическая печать и издательства | C50: =2122000 -> 2,122,000.00 | D50: 2,122,000.00 | E50: 100.00
A51: 1300 | B51: ОБСЛУЖИВАНИЕ ГОСУДАРСТВЕННОГО И МУНИЦИПАЛЬНОГО ДОЛГА | C51: =C52 -> 92,000.00 | D51: =D52 -> 91,986.30 | E51: =D51/C51*100 -> 99.99
A52: 1301 | B52: Обслуживание государственного внутреннего и муниципального долга | C52: 92,000.00 | D52: 91,986.30 | E52: =D52/C52*100 -> 99.99
A53: 1400 | B53: МЕЖБЮДЖЕТНЫЕ ТРАНСФЕРТЫ ОБЩЕГО ХАРАКТЕРА БЮДЖЕТАМ СУБЪЕКТОВ РОССИЙСКОЙ ФЕДЕРАЦИИ И МУНИЦИПАЛЬНЫХ ОБРАЗОВАНИЙ | C53: =C54+C55 -> 38,687,278.00 | D53: =D54+D55 -> 38,608,582.00 | E53: =D53/C53*100 -> 99.80
A54: 1401 | B54: Дотации на выравнивание бюджетной обеспеченности субъектов Российской Федерации и муниципальных образований | C54: =29022600 -> 29,022,600.00 | D54: 29,022,600.00 | E54: =D54/C54*100 -> 100.00
A55: 1403 | B55: Прочие межбюджетные трансферты общего характера. | C55: 9,664,678.00 | D55: 9,585,982.00 | E55: 99.19
A56: ИТОГО | C56: =C9+C16+C19+C22+C27+C31+C37+C40+C44+C48+C51+C53 -> 555,499,896.66 | D56: =D9+D16+D19+D22+D27+D31+D37+D40+D44+D48+D51+D53 -> 552,860,961.04 | E56: =D56/C56*100 -> 99.52
